bitfinex/quotes_BTCUSD_20251202
["timestamp","ask_amount","ask_price","bid_price","bid_amount"]
[1764656320267,2.56415412,87114.0,87113.0,0.02651331]
[1764656320614,2.56415412,87114.0,87113.0,0.01146331]
[1764656321051,0.22958949,87112.0,87111.0,0.02338331]
[1764656321459,0.22958949,87112.0,87111.0,0.03843331]
[1764656321875,0.22958949,87112.0,87111.0,0.06178331]
[1764656322231,0.22958949,87112.0,87111.0,0.06278331]
[1764656323452,0.22958949,87112.0,87111.0,0.02438331]
[1764656326025,2.59210949,87112.0,87111.0,0.001]
[1764656326391,2.60461018,87112.0,87111.0,0.001]
[1764656328326,2.56509018,87112.0,87111.0,0.01319]
[1764656328497,2.56509018,87112.0,87111.0,0.02465331]
[1764656328698,2.55258949,87112.0,87111.0,0.06305331]
[1764656328898,2.22958949,87112.0,87111.0,0.06305331]
[1764656329916,2.22958949,87112.0,87111.0,0.05159]
[1764656330122,2.22958949,87112.0,87111.0,0.06305331]
[1764656330721,2.0,87113.0,87111.0,0.05159]
[1764656330945,2.0,87113.0,87112.0,0.03481331]
[1764656331169,2.0,87113.0,87112.0,0.04986331]
[1764656333922,8.84e-05,87114.0,87112.0,0.04986331]
[1764656333923,8.84e-05,87114.0,87113.0,0.01146331]
[1764656334142,8.84e-05,87114.0,87113.0,0.27945016]
[1764656336329,8.84e-05,87114.0,87113.0,0.04986331]
[1764656340912,8.84e-05,87114.0,87113.0,0.02651331]
[1764656341353,8.84e-05,87114.0,87113.0,0.01146331]
[1764656341514,0.22960267,87107.0,87106.0,0.03031]
[1764656341689,0.22960267,87107.0,87097.0,0.01148145]
[1764656341690,0.01148052,87104.0,87098.0,0.023964]
[1764656341906,0.22962376,87099.0,87098.0,0.01250069]
[1764656342116,0.22962376,87099.0,87098.0,0.03062069]
[1764656342327,0.24578376,87099.0,87098.0,0.03062069]
[1764656342553,0.26914376,87099.0,87098.0,0.03062069]
[1764656342752,0.26914376,87099.0,87098.0,0.03262069]
[1764656343158,0.24578376,87099.0,87098.0,0.03262069]
[1764656343872,0.24578376,87099.0,87098.0,0.03062069]
[1764656344044,2.24578376,87099.0,87098.0,0.03062069]
[1764656344258,2.24578376,87099.0,87098.0,0.03462069]
[1764656350733,2.26864376,87099.0,87098.0,0.03462069]
[1764656350938,2.26852142,87099.0,87098.0,0.03462069]
[1764656351563,2.26852142,87099.0,87098.0,0.03162069]
[1764656351994,2.26852142,87099.0,87098.0,0.03362069]
[1764656352410,2.26852142,87099.0,87098.0,0.03262069]
[1764656352704,2.24566142,87099.0,87098.0,0.03362069]
[1764656352940,2.22950142,87099.0,87098.0,0.03362069]
[1764656354583,0.22950142,87099.0,87098.0,0.03362069]
[1764656354788,2.22950142,87099.0,87098.0,0.03362069]
[1764656355719,2.22950142,87099.0,87098.0,0.045084]
[1764656363484,2.22950142,87099.0,87098.0,0.03362069]
[1764656363674,2.26752142,87099.0,87098.0,0.03362069]
[1764656365369,2.24466142,87099.0,87098.0,0.03462069]
[1764656365616,2.26752142,87099.0,87098.0,0.03462069]
[1764656367513,2.03802,87099.0,87098.0,0.03462069]
[1764656367916,2.26764376,87099.0,87098.0,0.03462069]
[1764656368120,2.24478376,87099.0,87098.0,0.03462069]
[1764656368328,2.22962376,87099.0,87098.0,0.03462069]
[1764656369804,2.22962376,87099.0,87098.0,0.046084]
[1764656370002,2.22962376,87099.0,87098.0,0.03462069]
[1764656370224,2.22962376,87099.0,87098.0,0.046084]
[1764656370623,2.26764376,87099.0,87098.0,0.046084]
[1764656371162,2.24478376,87099.0,87098.0,0.046084]
[1764656371522,2.22962376,87099.0,87098.0,0.046084]
[1764656372926,2.26860376,87099.0,87098.0,0.046084]
[1764656373134,2.26860376,87099.0,87098.0,0.03462069]
[1764656373352,2.24499376,87099.0,87098.0,0.03462069]
[1764656373557,2.22962376,87099.0,87098.0,0.03462069]
[1764656376092,2.24513376,87099.0,87098.0,0.03462069]
[1764656376268,2.26935376,87099.0,87098.0,0.03462069]
[1764656376704,2.26935376,87099.0,87098.0,0.01650069]
[1764656376705,2.59235376,87099.0,87098.0,0.01650069]
[1764656377125,2.61719198,87099.0,87098.0,0.01650069]
[1764656377692,2.61719198,87099.0,87098.0,0.01350069]
[1764656378659,0.61719198,87099.0,87098.0,0.01350069]
[1764656378860,2.61719198,87099.0,87098.0,0.01350069]
[1764656380909,2.63531198,87099.0,87098.0,0.01350069]
[1764656381153,2.7369731,87099.0,87098.0,0.01350069]
[1764656381311,2.74029024,87099.0,87098.0,0.01350069]
[1764656381849,2.69783497,87099.0,87098.0,0.01350069]
[1764656382479,2.709323,87099.0,87098.0,0.01350069]
[1764656383495,2.824666,87099.0,87098.0,0.01350069]
[1764656383732,2.81317797,87099.0,87098.0,0.01350069]
[1764656383944,2.824666,87099.0,87098.0,0.01350069]
[1764656384123,2.81317797,87099.0,87098.0,0.01350069]
[1764656384277,2.824666,87099.0,87098.0,0.01350069]
[1764656384482,2.79369911,87099.0,87098.0,0.01350069]
[1764656390948,2.85821288,87099.0,87098.0,0.01350069]
[1764656392307,2.79369911,87099.0,87098.0,0.01350069]
[1764656394126,2.71968809,87099.0,87098.0,0.01350069]
[1764656394343,2.63531198,87099.0,87098.0,0.01350069]
[1764656394542,2.61047376,87099.0,87098.0,0.01350069]
[1764656399465,2.63521462,87099.0,87098.0,0.01350069]
[1764656400682,2.64670265,87099.0,87098.0,0.01350069]
[1764656401531,0.64670265,87099.0,87098.0,0.01350069]
[1764656401729,2.64670265,87099.0,87098.0,0.01350069]
[1764656401937,2.55263694,87094.0,87063.0,0.01816]
[1764656402089,2.55263694,87094.0,87055.0,0.03523]
[1764656402090,0.22971607,87064.0,87055.0,0.03523]
[1764656402292,2.24523398,87061.0,87056.0,0.01146331]
[1764656402719,2.26945398,87061.0,87056.0,0.01146331]
[1764656403176,2.22972398,87061.0,87060.0,0.01286331]
[1764656403376,2.22972398,87061.0,87060.0,0.01297862]
[1764656404266,0.05701999,87066.0,87060.0,0.04517531]
[1764656404267,2.0,87062.0,87060.0,0.04517531]
[1764656404467,2.24119832,87066.0,87065.0,0.01146331]
[1764656404684,2.01148553,87066.0,87065.0,0.02784331]
[1764656405093,2.01148553,87066.0,87065.0,0.05112331]
[1764656406101,2.01148553,87066.0,87065.0,0.05212331]
[1764656406501,2.0,87066.0,87065.0,0.05212331]
[1764656406705,0.01148527,87068.0,87065.0,0.04066]
[1764656406866,2.0,87067.0,87066.0,0.01146331]
[1764656407059,2.22970815,87067.0,87066.0,0.03571331]
[1764656407259,2.22970815,87067.0,87066.0,0.06321331]
[1764656408197,2.22970815,87067.0,87066.0,0.06421331]
[1764656408570,2.22970815,87067.0,87066.0,0.06506319]
[1764656408997,2.0,87067.0,87066.0,0.06506319]
[1764656409416,0.01148514,87069.0,87066.0,0.05359988]
[1764656409618,0.01148448,87074.0,87070.0,0.0275]
[1764656409817,0.01148435,87075.0,87073.0,0.0275]
[1764656410078,0.01148435,87075.0,87074.0,0.01146331]
[1764656410216,0.01148435,87075.0,87074.0,0.05153331]
[1764656411221,0.01148435,87075.0,87074.0,0.05253331]
[1764656414388,2.0,87076.0,87074.0,0.04107]
[1764656414723,2.0,87076.0,87075.0,0.05153331]
[1764656415066,2.0,87077.0,87076.0,0.01146331]
[1764656415426,2.0,87077.0,87076.0,0.05153331]
[1764656415781,2.0,87077.0,87076.0,0.05206836]
[1764656416185,0.034525,87092.0,87076.0,0.05206836]
[1764656416186,2.0,87090.0,87089.0,0.01146331]
[1764656416389,0.01148131,87098.0,87089.0,0.01146331]
[1764656416390,0.01148184,87094.0,87090.0,0.01146331]
[1764656416591,2.0,87093.0,87092.0,0.01146331]
[1764656416797,2.0,87091.0,87090.0,0.01146331]
[1764656416982,2.0,87091.0,87090.0,0.03571331]
[1764656417183,2.0,87092.0,87091.0,0.01146331]
[1764656417419,2.0,87092.0,87091.0,0.03571331]
[1764656417634,2.0,87092.0,87091.0,0.05153331]
[1764656418433,2.0,87093.0,87091.0,0.05153331]
[1764656418662,2.0,87095.0,87094.0,0.01146331]
[1764656418994,2.0,87095.0,87094.0,0.05153331]
[1764656420073,0.01148131,87098.0,87097.0,0.01146331]
[1764656420275,2.2411077,87098.0,87097.0,0.02728331]
[1764656420467,2.2411077,87098.0,87097.0,0.05153331]
[1764656421086,0.22959489,87110.0,87103.0,0.01146331]
[1764656421087,2.0,87104.0,87103.0,0.01146331]
[1764656421234,0.01147973,87110.0,87106.0,0.01146331]
[1764656421235,2.0,87107.0,87106.0,0.01146331]
[1764656421437,2.22960267,87107.0,87106.0,0.05153331]
[1764656421606,2.22960267,87107.0,87106.0,0.06321331]
[1764656422233,2.0,87108.0,87107.0,0.01146331]
[1764656422461,2.0,87108.0,87107.0,0.03571331]
[1764656422877,2.0,87108.0,87107.0,0.05153331]
[1764656423607,2.0,87109.0,87108.0,0.01146331]
[1764656424078,2.0,87109.0,87108.0,0.05153331]
[1764656425318,2.0,87109.0,87108.0,0.02728331]
[1764656425657,2.0,87109.0,87108.0,0.01146331]
[1764656428547,0.22960003,87108.0,87106.0,0.01168]
[1764656428794,2.22960003,87108.0,87107.0,0.01146331]
[1764656430329,2.22960003,87108.0,87107.0,0.01246331]
[1764656438046,0.22960003,87108.0,87107.0,0.01246331]
[1764656438248,2.22960003,87108.0,87107.0,0.01246331]
[1764656439136,2.22960003,87108.0,87107.0,0.04136]
[1764656439316,2.22960003,87108.0,87107.0,0.05282331]
[1764656447809,2.0,87108.0,87107.0,0.05282331]
[1764656449761,2.0,87108.0,87107.0,0.001]
[1764656453739,2.15637596,87108.0,87107.0,0.001]
[1764656453942,2.36415,87108.0,87107.0,0.001]
[1764656455102,2.0,87102.0,87100.0,0.01812]
[1764656455322,2.02714,87101.0,87100.0,0.01812]
[1764656455733,2.05207,87101.0,87100.0,0.01812]
[1764656456530,2.05207,87101.0,87100.0,0.02012]
[1764656456738,2.05207,87101.0,87100.0,0.01812]
[1764656457190,2.05207,87101.0,87100.0,0.02012]
[1764656458335,2.02714,87101.0,87100.0,0.02012]
[1764656459149,2.07341182,87101.0,87100.0,0.02012]
[1764656459473,0.09834182,87101.0,87100.0,0.02012]
[1764656459672,2.59834182,87101.0,87100.0,0.02012]
[1764656459822,2.05207,87101.0,87100.0,0.02012]
[1764656460263,2.02714,87101.0,87100.0,0.02012]
[1764656463177,2.05207,87101.0,87100.0,0.02012]
[1764656463916,2.02714,87101.0,87100.0,0.02012]
[1764656464612,2.02714,87101.0,87100.0,0.01812]
[1764656464854,2.01092,87101.0,87100.0,0.02012]
[1764656467459,2.12614596,87101.0,87100.0,0.02012]
[1764656469097,2.01092,87101.0,87100.0,0.02012]
[1764656470143,2.0,87101.0,87100.0,0.02012]
[1764656472550,2.22962903,87097.0,87096.0,0.02024917]
[1764656474619,2.26917903,87097.0,87096.0,0.002]
[1764656474863,2.59217903,87097.0,87096.0,0.002]
[1764656475255,0.55264485,87091.0,87085.0,0.00025176]
[1764656475460,2.57883485,87091.0,87085.0,0.00025176]
[1764656475631,2.60319485,87091.0,87085.0,0.00025176]
[1764656476006,2.61518485,87091.0,87085.0,0.00025176]
[1764656478189,2.61618485,87091.0,87085.0,0.00025176]
[1764656481932,2.65907535,87091.0,87085.0,0.00025176]
[1764656482165,2.78578934,87091.0,87085.0,0.00025176]
[1764656484218,2.67056338,87091.0,87085.0,0.00025176]
[1764656485763,0.55265803,87086.0,87085.0,0.00025176]
[1764656485945,2.63938656,87086.0,87085.0,0.00010168]
[1764656486152,2.55272398,87061.0,87060.0,0.0004]
[1764656486359,2.57891398,87061.0,87060.0,0.00044416]
[1764656486507,2.62139398,87061.0,87060.0,0.00044416]
[1764656487699,2.62239398,87061.0,87060.0,0.00044416]
[1764656489675,2.59803398,87061.0,87060.0,0.00044416]
[1764656489835,2.57184398,87061.0,87060.0,0.00044416]
[1764656491867,2.57084398,87061.0,87060.0,0.00123118]
[1764656492330,2.57084398,87061.0,87060.0,0.00323118]
[1764656493351,2.01812,87061.0,87060.0,0.01972118]
[1764656493530,2.0,87061.0,87060.0,0.05580526]
[1764656498799,1.83058069,87061.0,87060.0,0.05580526]
[1764656502229,1.83058069,87061.0,87060.0,0.03120526]
[1764656502393,1.83058069,87061.0,87060.0,0.00323118]
[1764656504683,1.85553069,87061.0,87060.0,0.00323118]
[1764656505134,1.83058069,87061.0,87060.0,0.00323118]
[1764656505755,1.83058069,87061.0,87060.0,0.01471526]
[1764656510947,0.22972323,87062.0,87060.0,0.01471526]
[1764656511257,2.0,87061.0,87060.0,0.01392824]
[1764656512080,2.02495,87061.0,87060.0,0.01392824]
[1764656513210,2.04107,87061.0,87060.0,0.01392824]
[1764656514617,2.04107,87061.0,87060.0,0.01192824]
[1764656514968,2.04107,87061.0,87060.0,0.01392824]
[1764656515846,2.04107,87061.0,87060.0,0.00244416]
[1764656517203,2.54107,87061.0,87060.0,0.00244416]
[1764656517414,2.54107,87061.0,87060.0,0.00323118]
[1764656517616,2.5,87061.0,87060.0,0.01471526]
[1764656517827,2.5,87061.0,87060.0,0.03937526]
[1764656518913,2.5,87061.0,87060.0,0.01471526]
[1764656519634,2.5,87061.0,87060.0,0.03937526]
[1764656520901,2.5,87061.0,87060.0,0.05580526]
[1764656521614,2.5,87061.0,87060.0,0.01471526]
[1764656523478,2.52495,87061.0,87060.0,0.01471526]
[1764656523841,2.54107,87061.0,87060.0,0.01471526]
[1764656524216,2.54107,87061.0,87060.0,0.00323118]
[1764656524911,2.54636,87061.0,87060.0,0.00323118]
[1764656525669,2.54636,87061.0,87060.0,0.00123118]
[1764656525900,2.54636,87061.0,87060.0,0.00323118]
[1764656526425,2.89417458,87061.0,87060.0,0.00323118]
[1764656526830,2.89417458,87061.0,87060.0,1e-08]
[1764656527274,0.323,87051.0,87050.0,0.0002]
[1764656527475,2.46120004,87051.0,87050.0,0.0002]
[1764656527788,2.48448004,87051.0,87050.0,0.0002]
[1764656527936,2.50264004,87051.0,87050.0,0.0002]
[1764656528332,2.47782546,87051.0,87050.0,0.0002]
[1764656529365,2.47782546,87051.0,87050.0,0.0022]
[1764656533012,2.47782546,87051.0,87050.0,0.00251488]
[1764656534786,2.36848743,87051.0,87050.0,0.00251488]
[1764656534937,2.35032743,87051.0,87050.0,0.00251488]
[1764656536191,2.32305743,87051.0,87050.0,0.00251488]
[1764656536933,2.36179743,87051.0,87050.0,0.00251488]
[1764656537583,2.32305743,87051.0,87050.0,0.01399896]
[1764656540168,2.44785546,87051.0,87050.0,0.00251488]
[1764656540831,2.44785546,87051.0,87050.0,1e-08]
[1764656540832,2.60598123,87051.0,87050.0,1e-08]
[1764656541052,2.55277677,87041.0,87040.0,0.0002]
[1764656541262,2.62270658,87041.0,87040.0,0.0002]
[1764656541467,2.64598658,87041.0,87040.0,0.0002]
[1764656541672,2.65059334,87041.0,87040.0,0.00051494]
[1764656541876,2.66208137,87041.0,87040.0,0.00051494]
[1764656542342,0.55280317,87031.0,87030.0,0.0002]
[1764656542606,2.56826317,87031.0,87030.0,0.0002]
[1764656542822,2.59154317,87031.0,87030.0,0.000515]
[1764656544310,2.60970317,87031.0,87030.0,0.000515]
[1764656545806,2.61070317,87031.0,87030.0,0.000515]
[1764656546526,0.61070317,87031.0,87030.0,0.000515]
[1764656546726,2.61070317,87031.0,87030.0,0.000515]
[1764656546928,2.61531016,87031.0,87030.0,0.000515]
[1764656549654,2.57387016,87031.0,87030.0,0.000515]
[1764656550298,2.59715016,87031.0,87030.0,0.000515]
[1764656550461,2.55380317,87031.0,87030.0,0.01199908]
[1764656550665,2.55280317,87031.0,87030.0,0.01199908]
[1764656550881,2.55280317,87031.0,87030.0,0.000515]
[1764656551083,2.55280317,87031.0,87030.0,0.01199908]
[1764656551249,2.59202317,87031.0,87030.0,0.01199908]
[1764656552105,2.56938317,87031.0,87030.0,0.01199908]
[1764656552427,2.55280317,87031.0,87030.0,0.01199908]
[1764656552663,2.22980317,87031.0,87030.0,0.05096908]
[1764656553090,2.22980317,87031.0,87030.0,0.01199908]
[1764656553847,2.24638317,87031.0,87030.0,0.000515]
[1764656554054,2.26902317,87031.0,87030.0,0.000515]
[1764656554412,2.59202317,87031.0,87030.0,0.000515]
[1764656555545,2.59302317,87031.0,87030.0,0.000515]
[1764656555950,2.61774567,87031.0,87030.0,0.000515]
[1764656556541,2.61674567,87031.0,87030.0,0.000515]
[1764656556941,2.61774567,87031.0,87030.0,0.000515]
[1764656559810,2.61674567,87031.0,87030.0,0.000515]
[1764656560197,2.64189567,87031.0,87030.0,0.000515]
[1764656561747,2.63741567,87031.0,87030.0,0.000515]
[1764656561893,2.63652317,87031.0,87030.0,0.000515]
[1764656562312,2.57795317,87031.0,87030.0,0.000515]
[1764656562686,2.55380317,87031.0,87030.0,0.05269908]
[1764656563404,2.55280317,87031.0,87030.0,0.05269908]
[1764656564475,2.22980317,87031.0,87030.0,0.05269908]
[1764656565688,2.22980317,87031.0,87030.0,0.02854908]
[1764656565890,2.26922317,87031.0,87030.0,0.000515]
[1764656566356,2.26922317,87031.0,87030.0,0.001515]
[1764656567170,2.26922317,87031.0,87030.0,0.000515]
[1764656567401,2.26922317,87031.0,87030.0,0.001515]
[1764656567828,2.26922317,87031.0,87030.0,0.000515]
[1764656569506,2.26922317,87031.0,87030.0,0.001515]
[1764656570337,0.26922317,87031.0,87030.0,0.001515]
[1764656570520,2.26922317,87031.0,87030.0,0.001515]
[1764656579840,2.22980317,87031.0,87030.0,0.001515]
[1764656580042,2.22980317,87031.0,87030.0,0.042215]
[1764656580261,2.22980317,87031.0,87030.0,0.001515]
[1764656580786,2.24539317,87031.0,87030.0,0.001515]
[1764656580958,2.59222317,87031.0,87030.0,0.001515]
[1764656581583,2.61701654,87031.0,87030.0,0.001515]
[1764656582348,2.61701654,87031.0,87030.0,0.000515]
[1764656584974,2.59222317,87031.0,87030.0,0.000515]
[1764656586370,2.61702345,87031.0,87030.0,0.000515]
[1764656586918,2.59222317,87031.0,87030.0,0.000515]
[1764656587121,2.61702342,87031.0,87030.0,0.000515]
[1764656588887,0.61702342,87031.0,87030.0,0.000515]
[1764656589058,2.61702342,87031.0,87030.0,0.000515]
[1764656590645,2.62851582,87031.0,87030.0,0.000515]
[1764656591208,2.58909582,87031.0,87030.0,0.000515]
[1764656591472,0.05410801,87039.0,87030.0,0.000515]
[1764656591473,2.0,87037.0,87036.0,0.01148408]
[1764656591729,0.01148989,87033.0,87030.0,0.0002]
[1764656591929,0.01563,87031.0,87030.0,0.0002]
[1764656592355,0.03936,87031.0,87030.0,0.0002]
[1764656593829,0.323,87032.0,87030.0,0.01683]
[1764656594095,0.323,87032.0,87031.0,0.03955408]
[1764656594310,0.323,87032.0,87031.0,0.02292408]
[1764656594725,0.01148963,87035.0,87031.0,0.02293015]
[1764656594937,2.823,87035.0,87034.0,0.24127933]
[1764656595155,2.323,87035.0,87034.0,0.01148408]
[1764656595567,2.55279261,87035.0,87034.0,0.01148408]
[1764656595782,2.323,87035.0,87034.0,0.01148408]
[1764656597416,2.323,87035.0,87034.0,0.01448408]
[1764656597622,2.323,87035.0,87034.0,0.01548408]
[1764656599504,2.33863,87035.0,87034.0,0.004]
[1764656599725,2.36236,87035.0,87034.0,0.01548408]
[1764656600314,2.36236,87035.0,87034.0,0.003]
[1764656600736,0.55279525,87034.0,87032.0,0.000252]
[1764656600966,0.01563,87033.0,87032.0,0.000252]
[1764656601277,0.03936,87033.0,87032.0,0.000252]
[1764656602082,0.03936,87033.0,87032.0,0.003252]
[1764656602280,0.03936,87033.0,87032.0,0.004252]
[1764656602485,0.01563,87033.0,87032.0,0.004252]
[1764656603408,0.01563,87033.0,87032.0,0.001252]
[1764656603618,0.01563,87033.0,87032.0,0.002252]
[1764656604197,0.323,87033.0,87032.0,0.002252]
[1764656604428,0.36236,87033.0,87032.0,0.002252]
[1764656604600,2.323,87038.0,87037.0,0.01148408]
[1764656604801,2.55278469,87038.0,87037.0,0.01148408]
[1764656605344,2.323,87037.0,87036.0,0.01148408]
[1764656605564,2.34673,87037.0,87036.0,0.01148408]
[1764656606538,2.323,87037.0,87036.0,0.01148408]
[1764656606803,2.34673,87037.0,87036.0,0.01148408]
[1764656607349,2.34673,87037.0,87036.0,0.24327405]
[1764656607799,2.34673,87037.0,87036.0,0.01348408]
[1764656608253,2.323,87037.0,87036.0,0.05434408]
[1764656608620,0.323,87043.0,87040.0,0.01148897]
[1764656608821,0.323,87043.0,87042.0,0.01148408]
[1764656609730,0.25301472,87045.0,87044.0,0.01148408]
[1764656609731,2.33476,87045.0,87044.0,0.01148408]
[1764656610108,2.56452621,87045.0,87044.0,0.01148408]
[1764656610315,2.58825621,87045.0,87044.0,0.01148408]
[1764656610632,2.33476,87045.0,87044.0,0.01148408]
[1764656611882,2.33476,87045.0,87044.0,0.01348408]
[1764656612164,2.323,87045.0,87044.0,0.01348408]
[1764656612498,5.743e-05,87051.0,87050.0,0.01148408]
[1764656612778,5.743e-05,87051.0,87050.0,0.04540408]
[1764656613019,5.743e-05,87051.0,87050.0,0.06855408]
[1764656614293,5.743e-05,87051.0,87050.0,0.06955408]
[1764656615194,5.743e-05,87051.0,87050.0,0.06855408]
[1764656615394,5.743e-05,87051.0,87050.0,0.07155408]
[1764656616291,5.743e-05,87051.0,87050.0,0.07255408]
[1764656617407,5.743e-05,87051.0,87050.0,0.03364408]
[1764656619306,0.01177743,87051.0,87050.0,0.03364408]
[1764656619468,0.37479743,87051.0,87050.0,0.03364408]
[1764656619963,0.37479743,87051.0,87050.0,0.03264408]
[1764656620163,0.37479743,87051.0,87050.0,0.02964408]
[1764656620553,0.37479743,87051.0,87050.0,0.03164408]
[1764656620764,0.37479743,87051.0,87050.0,0.03264408]
[1764656621082,0.35120743,87051.0,87050.0,0.03064408]
[1764656621262,0.85120743,87051.0,87050.0,0.03064408]
[1764656622571,0.85120743,87051.0,87050.0,0.03164408]
[1764656623240,0.87479743,87051.0,87050.0,0.03164408]
[1764656627643,0.83477743,87051.0,87050.0,0.03164408]
[1764656627850,0.82305743,87051.0,87050.0,0.05867]
[1764656628136,0.82305743,87051.0,87050.0,0.07015408]
[1764656631905,0.50005743,87051.0,87050.0,0.05867]
[1764656632119,0.50005743,87051.0,87050.0,0.07015408]
[1764656632526,0.50005743,87051.0,87050.0,0.03164408]
[1764656632747,0.7462378,87051.0,87050.0,0.03164408]
[1764656632954,0.7298078,87051.0,87050.0,0.03164408]
[1764656633961,0.50856754,87051.0,87050.0,0.03164408]
[1764656635564,0.54858754,87051.0,87050.0,0.01348408]
[1764656635783,0.54858754,87051.0,87050.0,0.03164408]
[1764656636877,0.52499754,87051.0,87050.0,0.03164408]
[1764656640239,0.29524717,87051.0,87050.0,0.03164408]
[1764656640661,0.27881717,87051.0,87050.0,0.03164408]
[1764656640828,0.27881717,87051.0,87050.0,0.29990709]
[1764656641892,0.27881717,87051.0,87050.0,0.36243008]
[1764656642440,0.27881717,87051.0,87050.0,0.76143008]
[1764656642644,0.27881717,87051.0,87050.0,0.76043008]
[1764656642824,0.27881717,87051.0,87050.0,0.76343008]
[1764656643257,0.27881717,87051.0,87050.0,0.76043008]
[1764656643432,0.27881717,87051.0,87050.0,0.76643008]
[1764656643791,0.27881717,87051.0,87050.0,0.76743008]
[1764656644172,0.27881717,87051.0,87050.0,0.76643008]
[1764656644594,0.27881717,87051.0,87050.0,0.76843008]
[1764656647992,0.27881717,87051.0,87050.0,0.76643008]
[1764656648324,0.27881717,87051.0,87050.0,0.76143008]
[1764656648824,0.27881717,87051.0,87050.0,0.76543008]
[1764656657163,0.27881717,87051.0,87050.0,0.36543008]
[1764656657569,0.27881717,87051.0,87050.0,0.34727008]
[1764656657778,0.27881717,87051.0,87050.0,0.36543008]
[1764656658410,0.27881717,87051.0,87050.0,0.34727008]
[1764656658731,0.27881717,87051.0,87050.0,0.36543008]
[1764656660746,0.27881717,87051.0,87050.0,0.30290709]
[1764656661255,0.07052118,87051.0,87050.0,0.30290709]
[1764656675710,0.07052118,87051.0,87050.0,0.01648408]
[1764656675911,0.33884155,87051.0,87050.0,0.01648408]
[1764656676520,0.33884155,87051.0,87050.0,0.01548408]
[1764656676715,0.66184155,87051.0,87050.0,0.004]
[1764656676917,0.66184155,87051.0,87030.0,0.0002]
[1764656676918,0.01148963,87035.0,87030.0,0.0002]
[1764656677157,0.01148963,87035.0,87034.0,0.01148408]
[1764656677535,0.01148963,87035.0,87033.0,0.01816]
[1764656677536,0.22979525,87034.0,87033.0,0.02964408]
[1764656677874,0.24128187,87036.0,87035.0,0.01148408]
[1764656680093,0.24128187,87036.0,87035.0,0.01448408]
[1764656682391,0.27985187,87036.0,87035.0,0.03264408]
[1764656682796,0.25684187,87036.0,87035.0,0.03264408]
[1764656685800,0.60285187,87036.0,87035.0,0.03264408]
[1764656686427,0.323,87036.0,87035.0,0.03264408]
[1764656686624,0.323,87036.0,87035.0,0.07159408]
[1764656686801,0.01148844,87044.0,87040.0,0.01148408]
[1764656686802,0.323,87041.0,87040.0,0.01148408]
[1764656688435,0.323,87041.0,87040.0,0.01348408]
[1764656689754,0.323,87041.0,87040.0,0.01448408]
[1764656690630,0.37326,87041.0,87040.0,0.01448408]
[1764656691505,0.35025,87041.0,87040.0,0.01448408]
[1764656691857,0.33469,87041.0,87040.0,0.01448408]
[1764656692455,0.37326,87041.0,87040.0,0.01448408]
[1764656693142,0.35025,87041.0,87040.0,0.01448408]
[1764656694278,0.37326,87041.0,87040.0,0.01448408]
[1764656696611,0.37326,87041.0,87040.0,0.003]
[1764656696811,0.37326,87041.0,87040.0,0.01448408]
[1764656697735,0.37326,87041.0,87040.0,0.01148408]
[1764656697961,0.37326,87041.0,87040.0,0.01248408]
[1764656698271,2.37326,87041.0,87040.0,0.01348408]
[1764656699980,2.37326,87041.0,87040.0,0.002]
[1764656700193,2.37326,87041.0,87040.0,0.01348408]
[1764656700396,2.37326,87041.0,87040.0,0.002]
[1764656700693,2.38674408,87041.0,87040.0,0.002]
[1764656701325,0.38674408,87041.0,87040.0,0.002]
[1764656701529,2.38674408,87041.0,87040.0,0.002]
[1764656701739,2.41925412,87041.0,87040.0,0.002]
[1764656702127,2.41925412,87041.0,87040.0,0.001]
[1764656702694,0.323,87033.0,87032.0,0.000252]
[1764656702897,2.33856,87033.0,87032.0,0.000252]
[1764656703115,2.36157,87033.0,87032.0,0.000252]
[1764656703319,2.36617643,87033.0,87032.0,0.000252]
[1764656708823,2.34316643,87033.0,87032.0,0.01173608]
[1764656709035,2.36182,87033.0,87032.0,0.01173608]
[1764656710946,0.22979525,87034.0,87032.0,0.000252]
[1764656710947,2.0,87034.0,87032.0,0.000252]
[1764656711146,2.0,87034.0,87033.0,0.05124408]
[1764656711403,2.323,87034.0,87033.0,0.05124408]
[1764656711693,2.0,87035.0,87034.0,0.01148408]
[1764656712037,2.0,87035.0,87034.0,0.03588408]
[1764656712163,2.01148778,87049.0,87048.0,0.01148408]
[1764656712363,2.0,87050.0,87049.0,0.01148408]
[1764656713576,2.03846,87050.0,87049.0,0.01148408]
[1764656713825,2.22975565,87049.0,87048.0,0.02964408]
[1764656714027,2.0,87049.0,87048.0,0.02964408]
[1764656714431,2.22975565,87049.0,87048.0,0.02964408]
[1764656715876,2.22975565,87049.0,87048.0,0.03064408]
[1764656716466,0.22975565,87049.0,87048.0,0.03064408]
[1764656716821,2.34626,87050.0,87049.0,0.01148408]
[1764656717350,2.36146,87050.0,87049.0,0.01148408]
[1764656718444,2.36146,87050.0,87049.0,0.01248408]
[1764656723533,2.36146,87050.0,87049.0,0.03064408]
[1764656723880,2.36146,87050.0,87049.0,0.01916]
[1764656724093,2.323,87050.0,87049.0,0.03064408]
[1764656725023,2.0,87050.0,87049.0,0.08265408]
[1764656726771,0.07052118,87051.0,87049.0,0.08265408]
[1764656726772,0.07052118,87051.0,87050.0,0.24123709]
[1764656726974,0.07052118,87051.0,87050.0,0.28099709]
[1764656727914,0.07045737,87051.0,87050.0,0.28099709]
[1764656728608,0.07045737,87051.0,87050.0,0.25759709]
[1764656728769,0.07045737,87051.0,87050.0,0.25859709]
[1764656728970,0.07045737,87051.0,87050.0,0.24323709]
[1764656730062,0.07045737,87051.0,87050.0,0.002]
[1764656730281,0.30020774,87051.0,87050.0,0.01348408]
[1764656730495,2.30020774,87051.0,87050.0,0.01348408]
[1764656734137,2.07045737,87051.0,87050.0,0.01348408]
[1764656738221,2.07045737,87051.0,87050.0,0.03164408]
[1764656739576,2.07045737,87051.0,87050.0,0.0608]
[1764656739780,0.07045737,87051.0,87050.0,0.07228408]
[1764656740361,0.22973905,87056.0,87053.0,0.01148408]
[1764656740362,2.0,87054.0,87053.0,0.01148408]
[1764656740671,2.01148699,87055.0,87054.0,0.01148408]
[1764656741243,0.01148699,87055.0,87054.0,0.01148408]
[1764656741471,2.01148699,87055.0,87054.0,0.01148408]
[1764656741899,2.0,87055.0,87054.0,0.01148408]
[1764656742104,0.26931981,87055.0,87054.0,0.01148408]
[1764656742300,0.26931981,87055.0,87054.0,0.01248408]
[1764656742301,2.26931981,87055.0,87054.0,0.01248408]